fUSD/lending_fUSD_20240414
["ID","MTS","AMOUNT","RATE_DAILY","PERIOD"]
[322592166,1713091844894,-2682.400853,0.0004888,7]
[322592167,1713091845029,-180781.62784536,0.0004888,7]
[322592168,1713091845094,-1303.69755485,0.00039243,2]
[322592169,1713091845103,-2491.59,0.00041229,2]
[322592170,1713091845112,-2100.0,0.00043836,14]
[322592171,1713091845121,-28167.50282912,0.0004888,7]
[322592172,1713091845131,-204204.15902032,0.0004888,7]
[322592173,1713091845142,-866.57163133,0.0004888,7]
[322592181,1713091846523,-250.0,0.00044051,115]
[322592182,1713091846533,-233.08463336,0.0004878,2]
[322592183,1713091846543,-2472.46738418,0.0004888,7]
[322592211,1713091846966,-150.0,0.0004805,30]
[322592213,1713091846975,-698.24994933,0.0004888,7]
[322592217,1713091847002,-1532.95,0.0004888,7]
[322592227,1713091870166,7814.31926298,0.00021,2]
[322592228,1713091916832,5334.24287883,0.00015,10]
[322592229,1713091924591,-164.65793639,0.000209,2]
[322592230,1713091924618,-443.7704705,0.00020997,2]
[322592231,1713091924642,-155.0,0.00020998,2]
[322592232,1713091924667,-5207.94845757,0.00020999,2]
[322592233,1713091924692,-37228.62313554,0.00021,2]
[322592234,1713092072484,600.0,0.00015,2]
[322592235,1713092103203,280.47,0.0002099,15]
[322592236,1713092409968,1836.61804054,0.00018898,5]
[322592237,1713092409990,4000.0,0.00018898,5]
[322592238,1713092410011,4000.0,0.00018898,5]
[322592239,1713092410033,4000.0,0.00018898,5]
[322592240,1713092410055,4000.0,0.00018898,5]
[322592241,1713092410076,4000.0,0.00018898,5]
[322592242,1713092410097,4000.0,0.00018898,5]
[322592243,1713092410118,4000.0,0.00018898,5]
[322592244,1713092410140,4000.0,0.00018898,5]
[322592245,1713092410160,2131.21299161,0.00018898,5]
[322592246,1713092416754,155.0,0.00018898,5]
[322592247,1713092434705,155.0,0.00018898,5]
[322592248,1713092450709,293.49077345,0.00018898,5]
[322592268,1713093032238,-742.69316302,0.00018998,2]
[322592269,1713093032247,-150.0,0.00018999,2]
[322592270,1713093032256,-1268.76382903,0.00019,5]
[322592271,1713093032310,-9111.23617097,0.00019,5]
[322592272,1713093032320,-645.35,0.00019573,2]
[322592273,1713093032329,-500.0,0.00020375,2]
[322592274,1713093032338,-1000.0,0.00020596,5]
[322592275,1713093032349,-157.92490406,0.00020697,2]
[322592276,1713093032360,-612.1509,0.00020799,2]
[322592277,1713093032370,-401.35660017,0.00020899,2]
[322592278,1713093032381,-210.0,0.00020899,2]
[322592279,1713093032391,-401.35660016,0.00020899,2]
[322592280,1713093032401,-281.93,0.00020899,2]
[322592281,1713093032410,-401.35660016,0.00020899,2]
[322592282,1713093032419,-401.35660016,0.00020899,2]
[322592283,1713093032429,-401.35660016,0.00020899,2]
[322592284,1713093032439,-401.35660016,0.000209,2]
[322592285,1713093032448,-401.35660016,0.000209,2]
[322592286,1713093032458,-401.35660016,0.000209,2]
[322592287,1713093032467,-401.35660016,0.000209,2]
[322592288,1713093032478,-39.07761287,0.000209,2]
[322592292,1713093032636,-960.92238713,0.000209,2]
[322592293,1713093032651,-5687.97761287,0.000209,2]
[322592369,1713093040989,-1122.94407473,0.000209,2]
[322592370,1713093041001,-440.51009051,0.000209,2]
[322592371,1713093041013,-2244.58242189,0.000209,2]
[322592372,1713093041023,-2314.9074876,0.000209,2]
[322592373,1713093041096,-68813.02978356,0.000209,2]
[322592374,1713093041106,-1393.3336,0.000209,2]
[322592375,1713093041117,-189.1268,0.000209,2]
[322592376,1713093041126,-1875.8252,0.000209,2]
[322592377,1713093041135,-401.35660016,0.000209,2]
[322592378,1713093041144,-1475.3025,0.000209,2]
[322592379,1713093041154,-466.90926201,0.000209,2]
[322592380,1713093041163,-187.52025476,0.000209,2]
[322592381,1713093041172,-19555.46332275,0.000209,2]
[322592382,1713093041183,-684.67395757,0.000209,2]
[322592383,1713093041192,-795.5402631,0.000209,2]
[322592384,1713093041201,-1230.7432046,0.000209,2]
[322592385,1713093041210,-699.25390004,0.000209,2]
[322592386,1713093041219,-187.69455529,0.000209,2]
[322592387,1713093041228,-522.12,0.00020989,3]
[322592388,1713093041237,-1000.0,0.00020998,5]
[322592389,1713093041246,-1000.0,0.00020998,5]
[322592390,1713093041255,-1000.0,0.00020998,5]
[322592391,1713093041264,-1000.0,0.00020998,5]
[322592392,1713093041273,-1000.0,0.00020998,5]
[322592393,1713093041282,-155.0,0.00020998,2]
[322592394,1713093041291,-892.4446693,0.00020998,2]
[322592395,1713093041300,-1068.27532462,0.00020999,5]
[322592396,1713093041309,-1068.27532462,0.00020999,5]
[322592397,1713093041318,-1068.27532462,0.00020999,5]
[322592398,1713093041329,-1068.27532462,0.00020999,5]
[322592399,1713093041338,-1068.27532462,0.00020999,5]
[322592400,1713093041349,-1068.27532462,0.00020999,5]
[322592401,1713093041359,-714.86127442,0.00020999,5]
[322592402,1713093041367,-2865.6,0.00020999,2]
[322592403,1713093041377,-499.99,0.00020999,2]
[322592404,1713093041386,-1140.15454431,0.00020999,5]
[322592405,1713093041395,-1140.15454431,0.00020999,5]
[322592406,1713093041404,-1140.15454431,0.00020999,5]
[322592407,1713093041413,-1140.15454431,0.00020999,5]
[322592408,1713093041422,-1140.15454431,0.00020999,5]
[322592409,1713093041431,-1140.15454431,0.00020999,5]
[322592410,1713093041440,-1140.15454431,0.00020999,5]
[322592411,1713093041449,-1140.15454431,0.00020999,5]
[322592412,1713093041459,-1140.15454431,0.00020999,5]
[322592413,1713093041468,-1140.15454431,0.00020999,5]
[322592414,1713093041477,-1140.15454431,0.00020999,5]
[322592415,1713093041486,-1140.1545443,0.00020999,5]
[322592416,1713093041495,-391.75608125,0.00020999,2]
[322592417,1713093041505,-198.14138076,0.00020999,2]
[322592418,1713093041514,-349.72588043,0.00020999,2]
[322592419,1713093041523,-187.20522088,0.00020999,2]
[322592420,1713093041533,-500.0,0.00020999,2]
[322592421,1713093041542,-414.09752293,0.00020999,2]
[322592422,1713093041551,-9570240.69361926,0.00021,2]
[322592423,1713093041563,-14438022.6587518,0.00021,2]
[322592424,1713093041574,-269840.67253395,0.00021,2]
[322592425,1713093041601,-692.51,0.00021,2]
[322592430,1713093042107,-816.40155097,0.00021,2]
[322592431,1713093042642,-500.0,0.00020999,2]
[322592432,1713093042654,-500.0,0.00020999,2]
[322592433,1713093042668,-499.99999981,0.00020999,2]
[322592434,1713093042680,-500.0,0.00020999,2]
[322592435,1713093042692,-538.25997555,0.00020999,2]
[322592436,1713093042702,-500.0,0.00020999,2]
[322592437,1713093042711,-219.24028979,0.00020999,2]
[322592438,1713093042722,-500.0,0.00020999,2]
[322592439,1713093042732,-500.0,0.00020999,2]
[322592440,1713093042741,-500.0,0.00020999,2]
[322592441,1713093042751,-500.0,0.00020999,2]
[322592442,1713093042761,-181384.18104646,0.00021,2]
[322592444,1713093042792,-849.99222008,0.00021,2]
[322592504,1713093043439,-1528.10427343,0.000209,2]
[322592515,1713093044473,-2.26809279,0.000209,2]
[322592520,1713093046373,-1098.2046898,0.000209,2]
[322592521,1713093046383,-31220.31258611,0.00021,2]
[322592522,1713093046456,-1791.684,0.00021,2]
[322592523,1713093122018,1265.29623494,0.0001,2]
[322592524,1713093122039,460.75725136,0.0001,2]
[322592525,1713093794666,613.08,0.00018368,2]
[322592551,1713094238314,-3228.83796738,0.00019635,2]
[322592552,1713094238324,-300.0,0.00019735,2]
[322592553,1713094238333,-341.47,0.00019799,2]
[322592554,1713094238343,-325.17,0.00019824,2]
[322592555,1713094238353,-999.99,0.00019834,2]
[322592556,1713094238363,-500.0,0.00019935,2]
[322592557,1713094238372,-665.0,0.00020136,2]
[322592558,1713094238382,-891.11869551,0.00020137,2]
[322592559,1713094238391,-194.56,0.00020139,2]
[322592560,1713094238400,-499.99,0.0002041,2]
[322592561,1713094238409,-150.0,0.00020448,2]
[322592562,1713094238418,-150.0,0.00020448,2]
[322592563,1713094238427,-4000.0,0.00020449,3]
[322592564,1713094238436,-1771.58511669,0.00020489,2]
[322592596,1713094239887,-1435.31389708,0.00020489,2]
[322592598,1713094239899,-392.87,0.00020499,2]
[322592599,1713094239910,-150.99,0.00020499,2]
[322592600,1713094239921,-1536.23844524,0.00020539,2]
[322592601,1713094239932,-250.0,0.00020541,2]
[322592602,1713094239943,-1536.23844524,0.0002061,2]
[322592604,1713094239955,-613.08,0.00020632,2]
[322592606,1713094239966,-563.08286244,0.0002079,2]
[322592617,1713094240084,-492.130993,0.0002079,2]
[322592619,1713094240097,-500.0,0.0002079,2]
[322592622,1713094240109,-5836.76501517,0.0002079,2]
[322592625,1713094240119,-200.67830008,0.000208,2]
[322592627,1713094240128,-189.1268,0.000208,2]
[322592630,1713094240138,-171.1684894,0.000208,2]
[322592632,1713094240148,-3206.89901377,0.00020816,2]
[322592637,1713094240157,-171.16848939,0.00020833,2]
[322592639,1713094240167,-1393.3336,0.00020897,2]
[322592641,1713094240177,-1969.16554552,0.00020897,2]
[322592644,1713094240188,-892.4446693,0.00020898,2]
[322592647,1713094240197,-6214.23309789,0.00020899,2]
[322592650,1713094240206,-159.10805262,0.00020899,2]
[322592652,1713094240216,-312.64835741,0.00020899,2]
[322592655,1713094240225,-159.10805262,0.00020899,2]
[322592658,1713094240235,-159.10805262,0.000209,2]
[322592661,1713094240245,-159.10805262,0.000209,2]
[322592664,1713094240254,-7877.3046,0.000209,2]
[322592666,1713094240263,-125780.8937,0.000209,2]
[322592669,1713094240272,-1875.8252,0.000209,2]
[322592672,1713094240284,-200.67830008,0.000209,2]
[322592675,1713094240293,-466.90926201,0.000209,2]
[322592678,1713094240302,-159.10805262,0.000209,2]
[322592680,1713094240311,-1230.7432046,0.000209,2]
[322592683,1713094240320,-699.25390004,0.000209,2]
[322592686,1713094240330,-312.6483574,0.000209,2]
[322592688,1713094240339,-977.77316628,0.000209,2]
[322592690,1713094240349,-977.77316613,0.000209,2]
[322592692,1713094240358,-977.77316613,0.000209,2]
[322592694,1713094240367,-977.77316613,0.000209,2]
[322592696,1713094240376,-977.77316613,0.000209,2]
[322592698,1713094240385,-977.77316613,0.000209,2]
[322592700,1713094240394,-187.69455529,0.000209,2]
[322592702,1713094240403,-3624.0,0.00020986,2]
[322592704,1713094240412,-19874.0,0.00020986,2]
[322592706,1713094240421,-7311.0,0.00020986,2]
[322592708,1713094240432,-426.14410958,0.00020987,2]
[322592710,1713094240441,-522.12,0.00020987,3]
[322592712,1713094240451,-167.21418192,0.00020989,2]
[322592714,1713094240461,-1714.21255285,0.0002099,2]
[322592716,1713094240470,-167.21418192,0.0002099,2]
[322592718,1713094240479,-487.20647456,0.00020997,2]
[322592720,1713094240489,-289.13586379,0.00020997,2]
[322592722,1713094240499,-155.2119925,0.00020997,3]
[322592724,1713094240510,-207.17268762,0.00020997,2]
[322592726,1713094240519,-206.27456611,0.00020997,2]
[322592728,1713094240530,-161.1031879,0.00020997,2]
[322592730,1713094240539,-683.00125252,0.00020997,2]
[322592732,1713094240549,-155.0,0.00020997,2]
[322592734,1713094240559,-2621.49510703,0.00020998,2]
[322592736,1713094240568,-179.61520801,0.00020998,2]
[322592738,1713094240577,-443.22442167,0.00020998,2]
[322592740,1713094240587,-199.42392399,0.00020998,5]
[322592742,1713094240596,-1068.27532462,0.00020998,5]
[322592744,1713094240605,-349.72588043,0.00020998,2]
[322592746,1713094240615,-198.14138076,0.00020998,2]
[322592748,1713094240624,-432.28376086,0.00020999,2]
[322592749,1713094240634,-161.01830558,0.00020999,2]
[322592751,1713094240644,-155.0,0.00020999,2]
[322592753,1713094240654,-224.63853312,0.00020999,2]
[322592755,1713094240664,-434.40268867,0.00020999,2]
[322592757,1713094240674,-1050.53368112,0.00020999,5]
[322592759,1713094240684,-1050.53368112,0.00020999,5]
[322592761,1713094240693,-1050.53368112,0.00020999,5]
[322592763,1713094240703,-1050.53368112,0.00020999,5]
[322592764,1713094240712,-1050.53368112,0.00020999,5]
[322592766,1713094240723,-1050.53368112,0.00020999,5]
[322592768,1713094240732,-1050.53368114,0.00020999,5]
[322592770,1713094240741,-1050.53368112,0.00020999,5]
[322592772,1713094240751,-1122.18473939,0.00020999,5]
[322592774,1713094240761,-1122.18473939,0.00020999,5]
[322592776,1713094240770,-1122.18473937,0.00020999,5]
[322592778,1713094240779,-1122.18473939,0.00020999,5]
[322592780,1713094240788,-1122.18473939,0.00020999,5]
[322592782,1713094240798,-1122.18473939,0.00020999,5]
[322592784,1713094240807,-1122.18473939,0.00020999,5]
[322592786,1713094240817,-1122.18473939,0.00020999,5]
[322592788,1713094240827,-1068.27532462,0.00020999,5]
[322592790,1713094240836,-1068.27532462,0.00020999,5]
[322592791,1713094240846,-1068.27532462,0.00020999,5]
[322592794,1713094240857,-1068.27532462,0.00020999,5]
[322592796,1713094240868,-1665266.5560905,0.00020999,2]
[322592797,1713094240877,-1068.27532462,0.00020999,5]
[322592799,1713094240888,-5000.0,0.00020999,5]
[322592801,1713094240897,-1000.0,0.00020999,5]
[322592803,1713094240909,-1000.0,0.00020999,5]
[322592805,1713094240919,-1000.0,0.00020999,5]
[322592807,1713094240930,-1000.0,0.00020999,5]
[322592809,1713094240940,-1000.0,0.00020999,5]
[322592811,1713094240949,-1000.0,0.00020999,5]
[322592813,1713094240958,-714.86127442,0.00020999,5]
[322592814,1713094240968,-500.0,0.00020999,2]
[322592816,1713094240977,-442.52164728,0.00020999,2]
[322592818,1713094240986,-500.0,0.00020999,2]
[322592820,1713094240995,-500.0,0.00020999,2]
[322592822,1713094241006,-500.0,0.00020999,2]
[322592824,1713094241016,-500.0,0.00020999,2]
[322592826,1713094241030,-571.62569125,0.00020999,2]
[322592828,1713094241040,-8905370.94463898,0.00021,2]
[322592830,1713094241052,-10530679.11442124,0.00021,2]
[322592832,1713094241063,-434.46,0.00021,2]
[322592834,1713094241072,-348.22,0.00021,2]
[322592836,1713094241082,-3906560.86433056,0.00021,2]
[322592838,1713094241093,-269840.67253395,0.00021,2]
[322592840,1713094241106,-4395.733603,0.00021,2]
[322592907,1713094241797,-413.23135527,0.00021,2]
[322592934,1713094242167,-171.16848939,0.00020867,2]
[322592935,1713094242178,-977.77316613,0.000209,2]
[322592936,1713094242189,-348.46998801,0.00021,2]
[322592937,1713094242202,-1799.9816049,0.00021,2]
[322592938,1713094242216,-4209.71973259,0.00021,2]
[322592939,1713094242229,-1000.07439358,0.00021,2]
[322592940,1713094242243,-1000.0,0.00021,2]
[322592941,1713094242275,-1120.32376913,0.00021,2]
[322592942,1713094242291,-2258.12544579,0.00021,2]
[322592943,1713094242305,-775.77409809,0.00021,2]
[322592944,1713094242326,-495.56476405,0.00021,2]
[322592961,1713094244386,-1006.0771304,0.00021,2]
[322592962,1713094244408,-37484.59165785,0.00021,2]
[322592963,1713094244504,-19267.70400001,0.00021,2]
[322592964,1713094244796,-187.52025476,0.000209,2]
[322592965,1713094244806,-5147.27612525,0.00021,2]
[322592966,1713094244817,-960.60485037,0.00021,2]
[322592967,1713094244829,-8379.10442661,0.00021,2]
[322592968,1713094244843,-27629.31207946,0.00021,2]
[322592969,1713094244854,-1175.58479218,0.00021,2]
[322592970,1713094244865,-200.0,0.00021,2]
[322592971,1713094244875,-1959.76086,0.00021,2]
[322592972,1713094244885,-166.78,0.00021026,2]
[322592973,1713094244895,-2580.21244792,0.00021122,2]
[322592987,1713094247028,-171.16848939,0.000209,2]
[322592988,1713094247046,-626.68656585,0.00021122,2]
[322592989,1713094247057,-194.56,0.00021188,2]
[322592990,1713094247067,-1536.23844524,0.0002128,2]
[322592991,1713094247078,-5313.42,0.00021343,2]
[322592992,1713094247089,-1536.23844527,0.00021402,2]
[322592993,1713094247100,-3206.8990138,0.00021554,2]
[322592994,1713094247110,-250.0,0.00021918,2]
[322592995,1713094247120,-250.0,0.00021918,2]
[322592996,1713094247130,-784.24043551,0.00022,2]
[322592997,1713094247141,-167.13,0.00022154,2]
[322592998,1713094247150,-4040.58863441,0.000223,2]
[322592999,1713094247160,-1189.0,0.000223,2]
[322593000,1713094247170,-683.82998877,0.000225,15]
[322593001,1713094247297,-1647.09143245,0.000225,15]
[322593002,1713094247384,-200.30576816,0.00020498,2]
[322593003,1713094247395,-569.07857878,0.000225,15]
[322593004,1713094247404,-1654.88186268,0.000225,2]
[322593007,1713095142135,-787.58999094,0.00019934,2]
[322593008,1713095142157,-388.175957,0.00019935,2]
[322593009,1713095142180,-162.58,0.00020046,2]
[322593010,1713095142203,-634.35,0.00020218,2]
[322593011,1713095142227,-164.39655237,0.00020786,2]
[322593012,1713095142250,-2339.5863669,0.00021,5]
[322593013,1713095142274,-1819.87,0.00021585,2]
[322593014,1713095142296,-500.0,0.00021682,2]
[322593015,1713095142324,-4000.0,0.00021732,3]
[322593016,1713095142347,-250.0,0.00021803,2]
[322593017,1713095150198,150.0,0.00021694,15]
[322593019,1713095244429,200.0,0.00019859,2]
[322593020,1713095246214,162.58,0.0002175,2]
[322593021,1713095248695,2210.58782681,0.00021694,2]
[322593022,1713095264759,2207.50251398,0.00021694,2]
[322593023,1713095289320,610.45,0.00019595,2]
[322593024,1713095304959,1545.062,0.00021484,2]
[322593025,1713095336803,250.0,0.00021593,2]
[322593026,1713095396114,366.28,0.00021636,2]
[322593044,1713095431381,-166.78,0.00021817,2]
[322593047,1713095431391,-610.45,0.00021859,2]
[322593050,1713095431401,-5503.23,0.00021864,2]
[322593052,1713095431411,-167.6,0.00021883,2]
[322593054,1713095431425,-250.0,0.00021918,2]
[322593056,1713095431436,-250.0,0.00021918,2]
[322593058,1713095431447,-920.55756862,0.00022,2]
[322593060,1713095431457,-784.24043551,0.00022022,2]
[322593061,1713095431466,-824.7,0.00022023,2]
[322593062,1713095431476,-167.6,0.00022073,2]
[322593063,1713095431486,-30.34199429,0.00022123,2]
[322593064,1713095431540,-382.00800571,0.00022123,2]
[322593065,1713095431550,-1728.26,0.00022123,2]
[322593066,1713095431560,-908.17,0.000222,2]
[322593067,1713095431569,-412.35,0.000222,2]
[322593068,1713095431579,-499.99,0.000222,2]
[322593069,1713095431588,-167.6,0.00022263,2]
[322593070,1713095431597,-1813.5168,0.0002227,2]
[322593071,1713095431606,-908.17,0.000224,2]
[322593072,1713095431616,-412.35,0.000224,2]
[322593073,1713095431626,-2080.0,0.000224,2]
[322593074,1713095431635,-635.55255807,0.00022447,2]
[322593075,1713095431645,-1002.94,0.00022447,2]
[322593076,1713095431654,-203.61674319,0.00022447,2]
[322593077,1713095431663,-167.6,0.00022453,2]
[322593078,1713095431672,-338.74240673,0.000225,2]
[322593084,1713095431864,-1065.95942586,0.000225,2]
[322593085,1713095431876,-640.384,0.000225,2]
[322593086,1713095431899,-873.29811072,0.000225,2]
[322593087,1713095431912,-388.17595752,0.000225,2]
[322593088,1713095431925,-2637.98202531,0.000225,2]
[322593095,1713095438003,-775.44461026,0.000225,2]
[322593096,1713095438058,-5897.6625,0.000225,2]
[322593097,1713095438212,-16277.2350605,0.000225,2]
[322593098,1713095438221,-998.32345492,0.00022516,2]
[322593121,1713095439878,-3268.46459724,0.00022516,2]
[322593124,1713095439890,-3739.52119804,0.00022516,2]
[322593126,1713095439900,-170.91827013,0.00022522,2]
[322593128,1713095439909,-170.91827013,0.00022522,2]
[322593130,1713095439919,-170.91827013,0.00022522,2]
[322593133,1713095439928,-170.91827013,0.00022522,2]
[322593135,1713095439937,-170.91827013,0.00022522,2]
[322593137,1713095439946,-170.91827013,0.00022522,2]
[322593139,1713095439955,-170.91827013,0.00022522,2]
[322593141,1713095439964,-170.91827013,0.00022522,2]
[322593143,1713095439973,-170.91827013,0.00022522,2]
[322593145,1713095439983,-170.91827013,0.00022522,2]
[322593148,1713095439994,-170.91827013,0.00022522,2]
[322593149,1713095440003,-170.91827013,0.00022522,2]
[322593151,1713095440012,-170.91827013,0.00022522,2]
[322593154,1713095440022,-170.91827013,0.00022522,2]
[322593156,1713095440031,-170.91827013,0.00022522,2]
[322593157,1713095440040,-170.91827013,0.00022522,2]
[322593159,1713095440049,-170.91827013,0.00022522,2]
[322593162,1713095440059,-170.91827013,0.00022522,2]
[322593164,1713095440068,-170.91827013,0.00022522,2]
[322593166,1713095440078,-170.91827013,0.00022522,2]
[322593168,1713095440087,-170.91827013,0.00022522,2]
[322593170,1713095440096,-407.8866304,0.00022531,2]
[322593172,1713095440105,-146950.8939441,0.00022532,2]
[322593174,1713095440114,-167.6,0.00022643,2]
[322593176,1713095440124,-1475.3025,0.00022649,2]
[322593178,1713095440132,-1640.63700906,0.0002273,2]
[322593180,1713095440142,-155.0,0.00022731,2]
[322593182,1713095440151,-138874.8221,0.0002278,2]
[322593184,1713095440160,-167.6,0.00022833,2]
[322593186,1713095440169,-635.55255798,0.00022839,2]
[322593188,1713095440179,-320.0,0.00023,10]
[322593190,1713095440188,-1250.0,0.00023,3]
[322593192,1713095440197,-167.6,0.00023024,2]
[322593194,1713095440206,-635.55255798,0.00023232,2]
[322593195,1713095440215,-150.0,0.00023256,2]
[322593197,1713095440225,-150.0,0.00023256,2]
[322593200,1713095440234,-167.68,0.00023343,2]
[322593202,1713095440245,-150.0,0.00023356,2]
[322593204,1713095440254,-150.0,0.00023356,2]
[322593206,1713095440263,-150.0,0.00023356,2]
[322593208,1713095440272,-150.0,0.00023356,2]
[322593210,1713095440280,-1000.0,0.00023454,2]
[322593212,1713095440290,-908.17,0.00023523,2]
[322593214,1713095440299,-412.35,0.00023523,2]
[322593216,1713095440308,-412.35,0.00023523,2]
[322593218,1713095440317,-908.17,0.00023523,2]
[322593220,1713095440327,-908.17,0.00023523,2]
[322593221,1713095440335,-635.55255798,0.00023624,2]
[322593224,1713095440345,-166.66,0.00023934,2]
[322593226,1713095440355,-521.03,0.00023934,2]
[322593228,1713095440364,-794.43,0.00023934,2]
[322593230,1713095440374,-150.0,0.00023934,2]
[322593232,1713095440383,-150.0,0.00023934,2]
[322593234,1713095440391,-635.55255798,0.00024016,2]
[322593236,1713095440401,-610.45,0.00024122,2]
[322593238,1713095440412,-1819.87,0.00024324,2]
[322593240,1713095440425,-635.55255798,0.00024408,2]
[322593242,1713095440434,-1000.0,0.0002447,2]
[322593244,1713095440443,-1000.0,0.0002447,2]
[322593246,1713095440452,-1000.0,0.0002447,2]
[322593248,1713095440463,-1000.0,0.0002447,2]
[322593250,1713095440472,-1000.0,0.0002447,2]
[322593251,1713095440481,-1000.0,0.0002447,2]
[322593253,1713095440492,-765.0,0.0002447,2]
[322593255,1713095440502,-166.78,0.00024545,2]
[322593257,1713095440510,-500.0,0.00024658,2]
[322593259,1713095440520,-500.0,0.000247,3]
[322593262,1713095440529,-151.95,0.00024756,2]
[322593263,1713095440539,-150.0,0.00024756,2]
[322593266,1713095440549,-150.0,0.00024756,2]
[322593268,1713095440558,-1813.5168,0.0002478,2]
[322593270,1713095440567,-1998.95566924,0.000248,2]
[322593272,1713095440576,-635.55255798,0.00024801,2]
[322593274,1713095440588,-563.08685838,0.00025,2]
[322593276,1713095440598,-225.47519718,0.00025,2]
[322593277,1713095440607,-1361.64470333,0.00025,2]
[322593279,1713095440616,-1300.0,0.00025,3]
[322593282,1713095440626,-2605.45039561,0.00025,2]
[322593283,1713095440635,-155.0,0.00025,2]
[322593285,1713095440644,-635.55255798,0.00025193,2]
[322593287,1713095440653,-635.55255798,0.00025585,2]
[322593289,1713095440663,-3811.49712453,0.00025768,28]
[322593292,1713095440673,-635.55255798,0.00025977,2]
[322593294,1713095440682,-635.55255798,0.0002637,2]
[322593295,1713095440691,-1000.0,0.00026385,2]
[322593298,1713095440700,-610.45,0.00026386,2]
[322593300,1713095440709,-303.24834043,0.00026398,2]
[322593302,1713095440719,-19108.17606825,0.000264,2]
[322593303,1713095440728,-168980.57733366,0.000264,2]
[322593306,1713095440738,-56597.8059902,0.000265,2]
[322593494,1713095442642,-170.91827013,0.00022522,2]
[322593495,1713095442652,-170.91827013,0.00022522,2]
[322593496,1713095442662,-131.12953476,0.00022522,2]
[322593497,1713095442809,-39.78873537,0.00022522,2]
[322593498,1713095442818,-170.91827013,0.00022522,2]
[322593499,1713095442827,-170.91827013,0.00022522,2]
[322593500,1713095442837,-170.91827013,0.00022522,2]
[322593501,1713095442846,-170.91827013,0.00022522,2]
[322593502,1713095442855,-170.91827013,0.00022522,2]
[322593503,1713095442864,-170.91827013,0.00022522,2]
[322593504,1713095442873,-170.91827013,0.00022522,2]
[322593505,1713095442883,-170.91827013,0.00022522,2]
[322593506,1713095442891,-170.91827013,0.00022522,2]
[322593507,1713095442901,-170.91827013,0.00022522,2]
[322593508,1713095442910,-170.91827013,0.00022522,2]
[322593509,1713095442919,-170.91827013,0.00022522,2]
[322593510,1713095442928,-170.91827013,0.00022522,2]
[322593511,1713095442938,-170.91827013,0.00022522,2]
[322593512,1713095442948,-170.91827013,0.00022522,2]
[322593513,1713095442957,-3819.00521267,0.00023527,3]
[322593514,1713095442969,-180.99478733,0.00023527,3]
[322593515,1713095442979,-4869.33157395,0.000265,2]
[322593516,1713095443026,-170.91827013,0.00022522,2]
[322593517,1713095443035,-469.72172987,0.000265,2]
[322593530,1713095447096,-170.91827013,0.00022522,2]
[322593531,1713095447107,-108.89988238,0.00022522,2]
[322593532,1713095447121,-62.01838775,0.00022522,2]
[322593533,1713095447132,-170.91827013,0.00022522,2]
[322593534,1713095447142,-25.35204794,0.00022522,2]
[322593535,1713095447155,-145.56622219,0.00022522,2]
[322593536,1713095447165,-170.91827013,0.00022522,2]
[322593537,1713095447175,-4.61550768,0.00022522,2]
[322593538,1713095470619,4842.988792,0.00021,2]
[322593541,1713096235409,519.59221222,0.00020999,15]
[322593543,1713096346093,-366.12020887,0.00018987,2]
[322593544,1713096346115,-233.87979113,0.00018988,2]
[322593545,1713096391453,575.41,0.00018206,2]
[322593546,1713096539071,-244.08013925,0.00018988,2]
[322593547,1713096539100,-303.00268691,0.00018988,2]
[322593548,1713096539130,-296.28666493,0.00018988,2]
[322593549,1713096539158,-150.0,0.00018989,2]
[322593550,1713096539185,-1453.53098202,0.0001899,2]
[322593551,1713096539220,-2446.90047311,0.0001899,2]
[322593552,1713096539255,-2446.90047311,0.0001899,2]
[322593553,1713096539285,-2446.90047311,0.0001899,2]
[322593554,1713096539332,-2446.90047311,0.0001899,2]